bitfinex/quotes_ETHUSD_20241030
["timestamp","ask_amount","ask_price","bid_price","bid_amount"]
[1730249336483,4.493279,2623.3,2622.6,0.55]
[1730249336640,3.0,2623.2,2622.6,0.55]
[1730249336841,6.81216,2623.2,2622.6,0.55]
[1730249337150,3.81245,2623.0,2622.5,0.7563]
[1730249337679,0.08159229,2622.9,2622.5,0.7563]
[1730249337974,0.54944652,2622.9,2622.5,0.7563]
[1730249339247,0.08159229,2622.9,2622.5,0.7563]
[1730249339650,4.59686,2623.1,2622.5,0.7563]
[1730249339860,0.08159229,2622.8,2622.5,0.7563]
[1730249340043,4.59686,2623.1,2622.5,0.7563]
[1730249340266,0.08159229,2622.7,2622.5,0.7563]
[1730249340435,3.81244,2623.0,2622.5,0.7563]
[1730249340636,0.08159229,2622.6,2622.5,1.3063]
[1730249340951,4.5968,2623.1,2622.5,1.3063]
[1730249341479,0.08159229,2623.0,2622.5,1.3063]
[1730249343917,0.08159229,2623.0,2622.6,0.55]
[1730249344084,0.681179,2623.3,2622.6,0.55]
[1730249344425,0.08158668,2622.9,2622.8,1.357]
[1730249344603,3.81149,2623.7,2623.0,0.55]
[1730249344773,0.08160168,2623.6,2623.0,0.55]
[1730249345586,0.08160168,2623.5,2623.1,0.807]
[1730249345788,0.08160168,2623.5,2623.2,0.55]
[1730249345976,0.59641802,2623.8,2623.2,0.55]
[1730249346471,0.08165045,2623.7,2623.2,0.55]
[1730249349118,0.08165045,2623.7,2622.5,0.807]
[1730249349119,3.81172,2623.5,2622.5,0.807]
[1730249349278,6.81189,2623.4,2622.5,0.807]
[1730249349620,6.89360608,2623.4,2622.5,0.807]
[1730249349780,1.07053261,2623.3,2622.5,0.807]
[1730249350214,0.08172168,2623.2,2622.5,0.807]
[1730249350414,0.08172168,2623.2,2622.6,0.55]
[1730249350720,3.89386168,2623.2,2622.5,0.807]
[1730249351116,3.81229,2623.1,2622.5,0.807]
[1730249351316,4.58304517,2623.0,2622.5,0.807]
[1730249351748,0.08169545,2622.9,2622.5,0.807]
[1730249352257,3.08169545,2622.9,2622.5,0.807]
[1730249352428,3.89427545,2622.9,2622.5,0.807]
[1730249352759,3.08169545,2622.9,2622.5,0.807]
[1730249352933,0.76648706,2622.8,2622.5,0.807]
[1730249353334,0.76648706,2622.8,2621.7,0.807]
[1730249353335,0.08162605,2622.7,2621.7,0.807]
[1730249353530,3.81317,2622.5,2621.7,0.807]
[1730249353740,3.8133,2622.4,2621.7,0.807]
[1730249354028,0.84425055,2622.3,2621.7,0.807]
[1730249355059,0.08160355,2622.3,2621.7,0.807]
[1730249355262,3.0,2622.5,2621.7,0.807]
[1730249355449,0.08160355,2622.2,2621.8,0.55]
[1730249355631,3.0,2622.5,2621.8,0.55]
[1730249355960,0.08160355,2622.1,2621.8,0.55]
[1730249356122,3.0,2622.5,2621.8,0.55]
[1730249356461,0.681309,2622.4,2621.8,0.55]
[1730249356759,0.76291255,2622.4,2621.8,0.55]
[1730249357520,4.57633255,2622.4,2621.8,0.55]
[1730249357726,4.57632255,2622.4,2621.8,0.55]
[1730249358155,8.38973255,2622.4,2621.8,0.55]
[1730249358367,0.91413326,2622.3,2621.8,0.55]
[1730249358931,0.08160355,2622.2,2621.8,0.55]
[1730249359375,7.56476,2622.5,2621.8,0.55]
[1730249359552,0.08160355,2622.1,2621.8,0.55]
[1730249359728,3.81332,2622.4,2621.8,0.55]
[1730249360059,0.08160355,2622.3,2621.8,0.55]
[1730249360269,0.84625591,2622.3,2621.8,0.55]
[1730249361229,3.81367,2622.2,2621.7,0.807]
[1730249361432,3.08147412,2622.1,2621.7,0.807]
[1730249361656,6.89529412,2622.1,2621.7,0.807]
[1730249361963,3.81388,2622.0,2621.5,1.357]
[1730249362180,4.88478241,2622.0,2621.5,1.357]
[1730249362538,0.08147412,2621.9,2621.5,1.357]
[1730249364169,0.08147412,2621.9,2621.5,1.35544252]
[1730249368906,0.08147412,2621.9,2621.6,0.807]
[1730249369737,0.76465236,2622.3,2621.8,0.7758]
[1730249369944,3.81331,2622.4,2621.9,0.55]
[1730249370239,8.37782,2622.6,2621.9,0.55]
[1730249370531,6.81317,2622.5,2621.9,0.55]
[1730249370733,3.0,2622.5,2621.9,0.55]
[1730249371140,3.81395,2622.0,2621.2,0.7758]
[1730249371346,4.57633,2622.1,2621.3,0.55]
[1730249371641,8.39007,2622.1,2621.3,0.55]
[1730249371808,3.01,2621.8,2621.1,0.7758]
[1730249372006,3.0,2621.4,2621.1,0.7758]
[1730249372322,3.0,2621.4,2620.3,0.28436603]
[1730249372323,0.681468,2621.3,2620.4,0.7758]
[1730249372831,3.0,2621.5,2620.4,0.7758]
[1730249373038,3.0,2621.5,2620.5,0.55]
[1730249373196,3.0,2621.5,2620.5,0.7758]
[1730249373592,4.57678,2621.8,2620.7,0.7758]
[1730249373593,3.0,2621.7,2620.7,0.7758]
[1730249373838,3.0,2621.7,2620.8,0.55]
[1730249374018,3.0,2621.7,2621.0,0.55]
[1730249374228,3.81399,2622.0,2621.4,0.55]
[1730249374540,4.652999,2622.0,2621.4,0.55]
[1730249374706,0.839009,2622.0,2621.4,0.55]
[1730249374897,3.81387,2622.1,2621.4,0.55]
[1730249375094,3.8136,2622.2,2621.5,0.7758]
[1730249375095,3.81368,2622.2,2621.5,0.7758]
[1730249375341,3.81368,2622.2,2621.6,0.55]
[1730249375809,7.6274,2622.2,2621.6,0.55]
[1730249376337,3.81375,2622.1,2621.6,0.55]
[1730249376937,3.0,2622.1,2621.6,0.55]
[1730249377898,6.81376,2622.1,2621.6,0.55]
[1730249378139,7.45423439,2622.1,2621.6,0.55]
[1730249380406,11.26808439,2622.1,2621.6,0.55]
[1730249380602,3.81388,2622.0,2621.5,0.7758]
[1730249380816,3.64047439,2622.1,2621.0,0.7758]
[1730249380817,3.81424,2621.8,2621.0,0.7758]
[1730249381025,0.381424,2621.7,2621.1,0.55]
[1730249382508,0.381424,2621.7,2621.3,0.55]
[1730249382707,3.81424,2621.8,2621.3,0.55]
[1730249382903,0.08052031,2621.6,2621.3,0.55]
[1730249383233,0.08052031,2621.5,2621.3,0.55]
[1730249383438,3.81424,2621.8,2621.3,0.55]
[1730249383639,0.08052031,2621.7,2621.3,0.55]
[1730249383968,3.81424,2621.8,2621.3,0.55]
[1730249384168,0.08052031,2621.6,2621.3,0.55]
[1730249384369,3.81424,2621.8,2621.3,0.55]
[1730249384370,8.391352,2621.8,2621.3,0.55]
[1730249384570,0.08052031,2621.5,2621.3,0.55]
[1730249384743,3.0,2621.7,2621.3,0.55]
[1730249384949,0.08052031,2621.4,2621.3,0.55]
[1730249385152,6.81443,2621.7,2621.3,0.55]
[1730249385351,0.08052031,2621.4,2621.3,0.55]
[1730249385572,1.1391492,2621.6,2621.3,0.55]
[1730249386073,0.08052031,2621.5,2621.3,0.55]
[1730249386570,3.0,2621.7,2621.3,0.55]
[1730249386744,0.08052031,2621.4,2621.3,0.55]
[1730249386937,6.81433,2621.7,2621.3,0.55]
[1730249387140,0.08052031,2621.4,2621.3,0.55]
[1730249387448,0.08052031,2621.4,2621.2,0.7758]
[1730249387644,4.9536292,2621.6,2620.6,0.55]
[1730249387645,3.0,2621.5,2620.6,0.55]
[1730249387878,3.0,2621.5,2620.8,0.55]
[1730249387879,3.89526528,2621.4,2620.8,0.55]
[1730249388032,5.08015473,2621.4,2620.8,0.55]
[1730249388590,6.406514,2621.3,2620.7,0.8177]
[1730249388734,3.81526,2621.1,2620.7,0.8177]
[1730249389173,0.08050528,2621.0,2620.7,0.8177]
[1730249391057,3.7517,2620.9,2619.9,0.8177]
[1730249391266,3.81599,2620.6,2619.9,0.8177]
[1730249391576,3.8161,2620.5,2619.9,0.8177]
[1730249391743,0.7517,2620.3,2619.8,0.0763947]
[1730249392072,7.56814,2620.3,2619.8,0.0763947]
[1730249392276,0.08032875,2620.2,2619.8,0.0763947]
[1730249392441,4.890142,2620.3,2619.8,0.0763947]
[1730249392442,3.0,2620.4,2619.8,0.0763947]
[1730249392636,0.08032875,2620.3,2619.9,0.8177]
[1730249393276,3.0,2620.3,2620.0,0.55]
[1730249393433,0.08032875,2620.2,2620.0,0.55]
[1730249393630,3.0,2620.3,2620.0,0.55]
[1730249393834,0.08032875,2620.2,2620.0,0.55]
[1730249394065,3.681622,2620.3,2620.0,0.55]
[1730249394364,0.08032875,2620.1,2619.9,0.8177]
[1730249394570,8.249762,2620.3,2619.8,0.0763947]
[1730249394731,0.08032875,2620.0,2619.8,0.0763947]
[1730249394936,8.249762,2620.3,2619.8,0.0763947]
[1730249395135,0.08032875,2619.9,2619.8,0.6263947]
[1730249395379,5.0230982,2620.2,2619.8,0.6263947]
[1730249395576,0.08032875,2619.9,2619.8,0.6263947]
[1730249395765,1.2065982,2620.2,2619.8,0.6263947]
[1730249395950,0.08032875,2619.9,2619.8,0.6263947]
[1730249396146,1.2065982,2620.2,2619.8,0.6263947]
[1730249396372,0.08032875,2619.9,2619.8,0.6263947]
[1730249396580,1.2065982,2620.2,2619.8,0.6263947]
[1730249396737,0.08032875,2619.9,2619.8,0.6263947]
[1730249396939,1.2065982,2620.2,2619.8,0.6263947]
[1730249397177,0.08032875,2619.9,2619.8,0.6263947]
[1730249397770,0.7517,2620.3,2619.8,0.6263947]
[1730249397973,0.08032875,2619.9,2619.8,0.6263947]
[1730249398179,1.12687,2620.3,2619.8,0.6263947]
[1730249398338,0.08032875,2619.9,2619.8,0.6263947]
[1730249398539,4.12687,2620.3,2619.8,0.6263947]
[1730249398770,0.08032875,2619.9,2619.8,0.6263947]
[1730249398972,0.794308,2620.2,2619.8,0.6263947]
[1730249399181,0.08032875,2619.9,2619.8,0.6263947]
[1730249399381,0.794308,2620.2,2619.8,0.6263947]
[1730249399582,0.08032875,2619.9,2619.8,0.6263947]
[1730249400169,4.12687,2620.3,2619.8,0.6263947]
[1730249400370,0.08032875,2619.9,2619.8,0.6263947]
[1730249400573,4.12687,2620.3,2619.8,0.6263947]
[1730249400743,0.08032875,2619.9,2619.8,0.6263947]
[1730249400941,7.94324,2620.3,2619.8,0.6263947]
[1730249401141,0.08032875,2619.9,2619.8,0.6263947]
[1730249401336,3.81651,2620.2,2619.8,0.0763947]
[1730249401557,0.08003761,2619.9,2619.8,0.0763947]
[1730249402065,0.794338,2620.1,2619.8,0.0763947]
[1730249402251,0.07994554,2619.9,2619.8,0.0763947]
[1730249402442,4.610988,2620.1,2619.8,0.0763947]
[1730249402746,3.07993051,2620.0,2619.8,0.0763947]
[1730249402893,0.76909185,2619.9,2619.8,0.0763947]
[1730249403193,7.58602185,2619.9,2619.8,0.0763947]
[1730249403366,7.66595236,2619.9,2619.8,0.0763947]
[1730249403565,8.47495236,2619.9,2619.8,0.0763947]
[1730249404582,0.07993051,2619.9,2619.8,0.0763947]
[1730249404898,3.81663,2620.2,2619.8,0.0763947]
[1730249405103,0.07985717,2619.9,2619.8,0.0763947]
[1730249405394,4.62587,2620.0,2619.8,0.0763947]
[1730249405605,0.54243477,2619.9,2619.8,0.0763947]
[1730249405769,3.54243477,2619.9,2619.8,0.0763947]
[1730249406299,7.35936477,2619.9,2619.8,0.0763947]
[1730249406680,8.16836477,2619.9,2619.8,0.0763947]
[1730249408099,4.35143477,2619.9,2619.8,0.0763947]
[1730249412804,11.57487877,2619.9,2619.8,0.0763947]
[1730249415404,4.35143477,2619.9,2619.8,0.0763947]
[1730249417214,7.75794877,2619.9,2619.8,0.0763947]
[1730249417375,11.57487877,2619.9,2619.8,0.0763947]
[1730249418969,7.75794877,2619.9,2619.8,0.0763947]
[1730249419175,11.57487877,2619.9,2619.8,0.0763947]
[1730249420712,7.75794877,2619.9,2619.8,0.0763947]
[1730249420919,3.54243477,2619.9,2619.8,0.0763947]
[1730249422440,0.07984777,2619.9,2619.8,0.9050947]
[1730249422941,0.59708928,2620.6,2619.8,0.9050947]
[1730249423097,0.07713647,2619.9,2619.8,0.9050947]
[1730249423305,3.406514,2620.5,2619.8,0.9050947]
[1730249423610,0.07713647,2619.9,2619.8,0.9050947]
[1730249424235,0.7222464,2620.4,2619.8,0.9050947]
[1730249424403,0.07713647,2619.9,2619.8,0.9050947]
[1730249424597,0.7222464,2620.4,2619.8,0.9050947]
[1730249424799,0.07713647,2619.9,2619.8,0.9050947]
[1730249424998,3.0,2620.6,2619.8,0.9050947]
[1730249425200,0.07721584,2619.9,2619.8,0.9050947]
[1730249425399,0.7205014,2620.5,2619.8,0.9050947]
[1730249425613,0.07721584,2619.9,2619.8,0.9050947]
[1730249425836,0.7205014,2620.5,2619.8,0.9050947]
[1730249426041,0.07721584,2619.9,2619.8,0.9050947]
[1730249426215,0.7205014,2620.5,2619.8,0.9050947]
[1730249426546,0.37205014,2620.4,2619.8,0.9050947]
[1730249426759,0.07472382,2620.4,2619.9,3.4828522]
[1730249427040,4.01,2620.9,2620.2,0.8287]
[1730249427349,0.07472209,2620.8,2620.2,0.8287]
[1730249427838,0.07472209,2620.8,2620.2,0.90502064]
[1730249428040,0.07472209,2620.8,2620.4,0.8287]
[1730249428447,4.01,2620.9,2620.4,0.8287]
[1730249428939,0.07480376,2620.8,2620.4,0.8287]
[1730249429141,0.87330376,2620.8,2619.9,0.8287]
[1730249429304,3.406514,2620.6,2619.9,0.8287]
[1730249429704,0.07482082,2620.5,2619.9,0.8287]
[1730249431705,3.07482082,2620.5,2619.9,0.8287]
[1730249432643,0.7757,2620.4,2619.9,0.8287]
[1730249432942,0.07473539,2620.3,2619.9,0.8287]
[1730249433155,0.45977893,2620.3,2619.9,0.8287]
[1730249433449,3.45977893,2620.3,2619.9,0.8287]
[1730249433616,3.07473539,2620.3,2619.9,0.8287]
[1730249434303,10.29762939,2620.3,2619.8,0.0763947]
[1730249435009,6.48124939,2620.3,2619.8,0.0763947]
[1730249435352,1.10731694,2620.2,2619.8,0.0763947]
[1730249435649,1.18203713,2620.2,2619.8,0.0763947]
[1730249438710,0.07472019,2620.2,2619.8,0.0763947]
[1730249439009,0.7757,2621.3,2620.0,0.7834]
[1730249439210,0.07472019,2620.1,2620.0,0.8034]
[1730249439415,4.59028,2621.6,2620.3,0.7834]
[1730249439639,4.59028,2621.6,2620.5,0.7834]
[1730249439640,0.85938989,2621.5,2620.5,0.7834]
[1730249439839,0.85938989,2621.5,2620.6,0.28516979]
[1730249439840,0.93407398,2621.5,2620.6,0.28516979]
[1730249440152,7.221274,2621.4,2620.7,0.28516979]
[1730249440444,7.221274,2621.4,2620.5,0.7834]
[1730249440445,0.7757,2621.1,2620.5,0.7834]
[1730249441009,0.07468409,2621.0,2620.5,0.7834]
[1730249441524,0.07468409,2620.9,2620.5,0.7834]
[1730249441718,3.0,2621.3,2620.5,0.7834]
[1730249441934,0.07468409,2620.8,2620.5,0.7834]
[1730249442106,4.18564039,2621.3,2620.5,0.7834]
[1730249442305,0.07468409,2620.7,2620.5,0.7834]
[1730249442542,4.18564039,2621.3,2620.5,0.7834]
[1730249442756,0.07468409,2620.6,2620.5,0.7834]
[1730249442948,3.0,2621.3,2620.5,0.7834]
[1730249443152,0.07468409,2620.6,2620.5,0.7834]
[1730249443306,4.18562939,2621.3,2620.5,0.7834]
[1730249443513,0.07468409,2620.6,2620.5,0.7834]
[1730249443807,4.18562939,2621.3,2620.5,0.7834]
[1730249444223,0.07468409,2621.2,2620.5,0.7834]
[1730249444971,5.49702484,2621.2,2620.5,0.7834]
[1730249446275,1.68190484,2621.2,2620.5,0.7834]
[1730249450980,0.07468409,2621.2,2620.5,0.7834]
[1730249451149,4.0036189,2621.7,2620.6,0.7628]
[1730249451349,0.07499554,2621.1,2620.6,0.7628]
[1730249451562,7.8180189,2621.7,2620.6,0.7628]
[1730249451767,0.07499554,2621.0,2620.6,0.7628]
[1730249451943,0.78180189,2621.6,2620.6,0.7628]
[1730249452140,0.07499554,2620.9,2620.6,0.7628]
[1730249452340,3.78180189,2621.6,2620.6,0.7628]
[1730249452571,0.07503728,2620.8,2620.6,0.7628]
[1730249452742,4.6474,2621.5,2620.6,0.7628]
[1730249453087,0.07508473,2620.7,2620.6,0.7628]
[1730249453239,1.22436919,2621.4,2620.6,0.7628]
[1730249453682,0.07508473,2621.3,2620.6,0.7628]
[1730249456669,3.90778473,2621.3,2620.6,0.7628]
[1730249456984,3.0,2621.1,2620.6,0.7628]
[1730249457153,0.681505,2621.0,2620.6,0.7628]
[1730249457647,0.07507713,2620.9,2620.6,0.7628]
[1730249458159,0.07500311,2620.8,2620.6,0.7628]
[1730249458356,3.0,2621.3,2620.6,0.7628]
[1730249458584,0.07500311,2620.7,2620.6,0.7628]
[1730249458789,3.0,2621.3,2620.6,0.7628]
[1730249458961,0.07500311,2620.7,2620.6,0.7628]
[1730249459181,3.0,2621.3,2620.6,0.7628]
[1730249459379,0.07500311,2620.7,2620.6,0.7628]
[1730249459566,6.8149,2621.3,2620.6,0.7628]
[1730249459763,0.07500311,2620.7,2620.6,0.7628]
[1730249460001,6.8149,2621.3,2620.6,0.7628]
[1730249460203,0.07502021,2620.7,2620.6,0.7628]
[1730249460408,1.4036164,2621.2,2620.6,0.7628]
[1730249460902,0.07502021,2621.1,2620.6,0.7628]
[1730249461390,3.89021021,2621.1,2620.6,0.7628]
[1730249461715,3.81556,2620.9,2620.1,0.7788]
[1730249461866,3.0,2620.8,2620.1,0.7788]
[1730249462065,0.07503349,2620.7,2620.1,0.7788]
[1730249462270,3.89083349,2620.7,2620.1,0.7788]
[1730249462502,3.0,2620.6,2620.1,0.7788]
[1730249462840,3.98908335,2620.6,2620.1,0.7788]
[1730249462971,0.07503349,2620.5,2620.1,0.7788]
[1730249463810,3.0,2620.4,2619.9,1.18490029]
[1730249464171,0.07495756,2620.3,2619.9,1.18490029]
[1730249464514,3.07495756,2620.3,2619.9,1.18490029]
[1730249464812,0.84573432,2620.3,2619.9,1.18490029]
[1730249465401,3.81653,2620.2,2619.9,1.18490029]
[1730249465706,3.89140402,2620.2,2619.9,1.18490029]
[1730249465873,0.07487402,2620.2,2619.9,1.18490029]
[1730249466068,0.77077676,2620.3,2619.9,1.18490029]
[1730249466390,0.07476769,2620.2,2619.9,1.18490029]
[1730249466612,0.77077676,2620.3,2619.9,1.18490029]
[1730249467104,0.07476769,2620.2,2619.9,1.18490029]
[1730249467411,3.76618445,2620.2,2619.9,1.18490029]
[1730249467589,0.07476769,2620.1,2619.9,1.18490029]
[1730249468403,7.63339,2620.0,2619.9,0.40610029]
[1730249468583,7.70813109,2620.0,2619.9,0.40610029]
[1730249468916,9.27788904,2620.0,2619.9,0.40610029]
[1730249469115,6.81693,2619.9,2619.8,0.0763947]
[1730249469580,6.89164639,2619.9,2619.8,0.0763947]
[1730249469779,0.07471639,2619.9,2619.8,0.0763947]
[1730249470115,0.0746822,2619.9,2619.8,0.8551947]
[1730249470348,6.81646,2620.3,2619.8,0.8551947]
[1730249470614,0.074629,2619.9,2619.8,0.8551947]
[1730249470793,3.81653,2620.2,2619.8,0.8551947]
[1730249470993,0.07466319,2619.9,2619.8,0.8551947]
[1730249471192,3.81653,2620.2,2619.8,0.8551947]
[1730249471395,0.07466319,2619.9,2619.8,0.8551947]
[1730249471612,3.0,2620.3,2619.8,0.8551947]
[1730249471820,0.07466319,2619.9,2619.8,0.8551947]
[1730249472330,6.81614,2620.5,2619.8,0.8551947]
[1730249472533,0.07466319,2619.9,2619.8,0.8551947]
[1730249472687,3.0,2620.5,2619.8,0.8551947]
[1730249472887,0.07470499,2620.4,2619.8,0.8551947]
[1730249473119,0.07470499,2620.4,2619.9,0.55]
[1730249473823,0.07470499,2620.4,2620.2,0.7788]
[1730249474024,0.07470499,2620.4,2620.3,0.55]
[1730249474236,3.81526,2621.1,2620.5,0.55]
[1730249474421,0.463186,2621.0,2620.5,0.55]
[1730249474599,0.53790049,2621.0,2620.5,0.55]
[1730249474801,4.35323049,2621.0,2620.5,0.55]
[1730249475438,3.53790049,2621.0,2620.5,0.55]
[1730249476630,3.0,2620.8,2620.5,0.55]
[1730249477238,0.07471449,2620.7,2620.5,0.55]
[1730249477401,0.76373594,2620.7,2620.4,0.7788]
[1730249477731,3.89062449,2620.7,2619.9,0.7788]
[1730249478605,0.07471449,2620.7,2619.9,0.7788]
[1730249478901,0.07471449,2620.7,2619.9,1.3288]
[1730249479134,0.07471449,2620.7,2619.9,0.55]
[1730249479307,0.07471449,2620.7,2620.1,0.55]
[1730249479508,3.0,2621.0,2620.3,0.7788]
[1730249479713,0.07477146,2620.9,2620.4,0.55]
[1730249479927,0.07477146,2620.9,2620.6,0.55]
[1730249483450,3.81571,2620.8,2620.5,0.7788]
[1730249483610,3.81571,2620.8,2620.1,0.55]
[1730249483809,0.07487022,2620.7,2620.1,0.55]
[1730249484133,3.89147022,2620.7,2620.0,0.7788]
[1730249484340,3.81632,2620.4,2620.0,0.7788]
[1730249485044,0.07490441,2620.3,2620.0,0.7788]
[1730249486410,0.07490441,2620.3,2620.1,0.55]
[1730249486733,0.59706583,2620.6,2620.1,0.55]
[1730249486734,0.07487213,2620.2,2620.1,0.55]
[1730249486935,1.88714115,2620.9,2620.1,0.55]
[1730249487152,0.07483983,2620.2,2620.1,0.55]
[1730249487318,4.88714115,2620.9,2620.1,0.55]
[1730249487511,0.07483983,2620.8,2620.1,0.55]
[1730249489722,0.07483983,2620.8,2620.3,0.55]
[1730249490852,0.07483983,2620.8,2620.4,0.812]
[1730249491063,0.07483983,2620.8,2620.7,1.362]
[1730249491359,0.8128,2621.9,2621.1,0.55]
[1730249491725,0.59686614,2621.8,2621.1,0.55]
[1730249492561,0.59686614,2621.8,2621.3,0.55]
[1730249493961,0.8128,2622.1,2621.4,0.812]
[1730249494162,0.462647,2622.0,2621.5,0.55]
[1730249500142,0.462647,2622.0,2620.9,0.41594535]
[1730249500143,0.462647,2622.0,2621.7,0.55]
[1730249500343,3.0,2622.2,2621.7,0.55]
[1730249500743,3.0,2622.4,2621.7,0.55]
[1730249500977,6.81333,2622.4,2621.7,0.55]
[1730249501182,3.0,2622.2,2621.7,0.55]
[1730249501849,3.0,2622.3,2621.7,0.55]
[1730249502049,4.1032644,2622.3,2621.7,0.55]
[1730249502683,7.9167244,2622.3,2621.7,0.55]
[1730249502983,0.07283241,2622.2,2621.7,0.55]
[1730249504376,3.81374,2622.1,2621.7,0.55]
[1730249504747,0.07285138,2622.1,2621.7,0.55]
[1730249505544,8.41678736,2622.1,2621.6,0.812]
[1730249505882,3.81426,2621.8,2621.3,0.7697]
[1730249506055,0.7220774,2621.7,2621.3,0.7697]
[1730249506485,0.07043988,2621.6,2621.3,0.7697]
[1730249507151,0.07043988,2621.6,2621.4,0.55]
[1730249512907,0.07043988,2621.6,2621.5,1.3197]
[1730249513466,4.61082,2622.6,2621.7,0.7697]
[1730249513667,4.61082,2622.6,2621.8,0.55]
[1730249513668,1.1830284,2622.5,2621.8,0.55]
[1730249513910,1.1830284,2622.5,2622.0,0.55]
[1730249514065,3.406514,2622.7,2622.0,0.55]
[1730249514270,4.61053,2622.8,2622.0,0.55]
[1730249514496,3.81287,2622.7,2622.0,0.55]
[1730249515302,0.7978,2622.8,2622.0,0.55]
[1730249515501,3.7978,2622.8,2622.0,0.55]
[1730249515704,1.8994974,2622.8,2622.2,0.55]
[1730249516872,4.8994974,2622.8,2622.2,0.55]
[1730249517190,3.8129,2622.7,2622.2,0.55]
[1730249517376,3.8129,2622.7,2622.1,0.7697]
[1730249517377,3.81366,2622.2,2621.5,0.7697]
[1730249517706,0.381366,2622.1,2621.5,0.7697]
[1730249517878,0.07070917,2622.1,2621.5,0.7697]
[1730249518679,0.07070917,2622.1,2621.6,0.55]
[1730249519701,3.88444917,2622.1,2621.6,0.55]
[1730249520271,0.07070917,2622.1,2621.6,0.55]
[1730249520467,4.63339,2622.0,2621.1,0.7672]
[1730249520700,3.81424,2621.8,2621.1,0.7672]
[1730249521069,0.07062763,2621.7,2621.1,0.7672]
[1730249521723,3.81453,2621.6,2621.1,0.7672]
[1730249522014,7.62877,2621.7,2621.1,0.7672]
[1730249522312,0.07062763,2621.5,2621.1,0.7672]
[1730249522498,3.81448,2621.6,2621.1,0.7672]
[1730249522697,0.07062763,2621.4,2621.1,0.7672]
[1730249523021,0.07062763,2621.3,2621.2,0.55]
[1730249523328,3.0,2621.7,2621.2,0.55]
[1730249523501,0.07062763,2621.3,2621.2,0.55]
[1730249523678,3.79252513,2621.7,2621.2,0.55]
[1730249523882,0.07044935,2621.3,2621.2,0.55]
[1730249524181,0.07044935,2621.3,2621.1,0.55]
[1730249524378,3.0,2621.2,2621.0,0.40592986]
[1730249524811,0.07044935,2621.1,2621.0,0.40592986]
[1730249525581,0.07044935,2621.1,2621.0,0.95592986]
[1730249525806,6.81475,2621.4,2621.0,0.95592986]
[1730249525977,8.3002894,2621.4,2621.0,0.95592986]
[1730249526485,0.07044935,2621.3,2621.0,0.95592986]
[1730249528505,3.0,2621.2,2621.0,0.95592986]
[1730249528696,0.07044935,2621.3,2621.0,0.95592986]
[1730249528991,8.3003494,2621.4,2621.0,0.95592986]
[1730249529181,1.29344794,2621.3,2621.0,0.95592986]
[1730249529619,0.07044935,2621.2,2621.0,0.95592986]
[1730249530128,0.07044935,2621.1,2621.0,0.95592986]
[1730249530617,1.29344794,2621.3,2621.0,0.95592986]
[1730249530824,0.07044935,2621.1,2621.0,0.95592986]
[1730249531121,1.29344794,2621.3,2621.0,0.95592986]
[1730249531306,0.07044935,2621.1,2621.0,0.95592986]
[1730249531512,3.0,2621.2,2621.0,0.95592986]
[1730249531678,0.07044935,2621.1,2621.0,0.95592986]
[1730249532727,1.70782908,2621.1,2621.0,0.95592986]
[1730249533223,0.88832908,2621.1,2621.0,0.95592986]
[1730249533516,0.07044935,2621.1,2621.0,0.95592986]
[1730249533996,7.6344,2621.3,2621.0,0.95592986]
[1730249534428,3.8195,2621.3,2621.0,0.95592986]
[1730249534746,0.07018942,2621.2,2621.0,0.95592986]
[1730249535152,7.63441,2621.3,2621.0,0.95592986]
[1730249535342,8.779331,2621.3,2621.0,0.95592986]
[1730249535546,0.07018942,2621.2,2621.0,0.95592986]
[1730249535910,4.964421,2621.3,2621.0,0.95592986]
[1730249536115,0.07018942,2621.1,2621.0,0.95592986]
[1730249536350,8.779351,2621.3,2621.0,0.95592986]
[1730249536650,5.0744551,2621.2,2621.0,0.95592986]
[1730249536954,5.14464452,2621.2,2621.0,0.95592986]
[1730249537249,1.32960452,2621.2,2621.0,0.93286224]
[1730249537452,5.14464452,2621.2,2621.0,0.93286224]
[1730249537615,0.89641445,2621.1,2621.0,0.93286224]
[1730249538233,3.96660387,2621.1,2621.0,0.93286224]
[1730249544535,0.07018942,2621.1,2621.0,0.93286224]
[1730249544737,0.07018942,2621.1,2621.0,5.10657624]
[1730249544958,0.8195,2622.1,2621.3,0.55]
[1730249545167,3.81368,2622.2,2621.5,0.55]
[1730249545369,0.06780434,2622.0,2621.5,0.55]
[1730249545672,4.63289,2622.4,2621.7,0.55]
[1730249545983,0.06785011,2621.9,2621.7,0.55]
[1730249546137,3.81362,2622.2,2621.7,0.55]
[1730249546345,0.06789587,2621.8,2621.7,0.55]
[1730249546567,9.6315414,2622.4,2621.7,0.55]
[1730249546834,3.81348,2622.3,2621.7,0.55]
[1730249547037,3.96316214,2622.2,2621.7,0.55]
[1730249547454,0.06798356,2622.1,2621.7,0.55]
[1730249551373,0.06798356,2622.1,2622.0,1.3069]
[1730249551743,7.62558,2622.8,2622.1,0.55]
[1730249551957,3.81274,2622.8,2622.1,0.55]
[1730249552289,0.44489519,2622.7,2622.1,0.55]
[1730249552478,0.06362119,2622.7,2622.1,0.55]
[1730249552675,3.0,2622.8,2622.1,0.55]
[1730249552873,0.06365372,2622.6,2622.3,0.55]
[1730249553051,3.81244,2623.0,2622.3,0.55]
[1730249553251,0.06368243,2622.5,2622.3,0.55]
[1730249553485,3.0,2622.9,2622.3,0.55]
[1730249553702,0.06373411,2622.4,2622.3,0.55]
[1730249553853,0.681244,2622.8,2622.3,0.55]
[1730249554052,0.06373411,2622.4,2622.3,0.55]
[1730249554359,3.0,2622.9,2622.3,0.55]
[1730249554687,7.62231,2623.1,2622.3,0.55]
[1730249554853,0.06378386,2622.8,2622.3,0.55]
[1730249555057,3.0,2622.9,2622.3,0.55]
[1730249555255,0.06378386,2622.7,2622.3,0.55]